bitfinex/quotes_SOLUSD_20240614
["timestamp","ask_amount","ask_price","bid_price","bid_amount"]
[1718378728150,22.9773,144.93,144.86,2.7241]
[1718378728366,12.7649,144.93,144.86,47.724]
[1718378728532,7.6594,144.92,144.86,0.17]
[1718378728736,100.0,144.91,144.76,17.4889]
[1718378728938,2.5548,144.83,144.77,6.3051]
[1718378729141,10.2189,144.83,144.77,6.3051]
[1718378729355,5.1085,144.86,144.77,6.3051]
[1718378729649,100.0,144.85,144.76,1.2949]
[1718378729832,22.9943,144.82,144.76,1.2949]
[1718378730027,7.6652,144.81,144.76,1.2949]
[1718378730247,5.1099,144.82,144.76,1.2949]
[1718378730437,17.8814,144.85,144.78,2.5555]
[1718378730638,2.5544,144.85,144.79,2.5553]
[1718378730843,2.5545,144.84,144.78,2.5555]
[1718378731455,2.5545,144.84,144.77,23.1708]
[1718378731757,5.1099,144.82,144.76,1.4649]
[1718378731961,5.1099,144.82,144.76,1.2949]
[1718378731962,22.9943,144.82,144.76,1.2949]
[1718378732144,100.0,144.86,144.78,2.5555]
[1718378732145,22.9898,144.85,144.78,2.5555]
[1718378732341,2.5545,144.84,144.78,2.5555]
[1718378732942,105.1085,144.86,144.78,7.6667]
[1718378733248,0.17,144.89,144.82,2.5548]
[1718378733249,2.5539,144.88,144.82,2.5548]
[1718378733631,2.5539,144.88,144.82,7.6645]
[1718378733943,5.1072,144.9,144.82,10.2189]
[1718378734252,2.5537,144.89,144.83,2.7245]
[1718378734464,15.3189,144.92,144.85,7.6628]
[1718378734634,7.6594,144.92,144.85,25.5425]
[1718378734833,2.5531,144.92,144.86,2.5541]
[1718378735038,7.6594,144.92,144.85,25.5425]
[1718378735235,2.5533,144.91,144.85,2.5542]
[1718378735462,2.5536,144.9,144.83,5.2792]
[1718378735634,100.0,144.92,144.73,100.0]
[1718378735635,100.0,144.92,144.8,22.893]
[1718378735956,2.5535,144.9,144.83,25.5465]
[1718378736157,2.5535,144.9,144.84,2.5544]
[1718378736458,2.5532,144.92,144.85,5.2787]
[1718378736663,7.6595,144.92,144.85,12.7717]
[1718378736848,7.6595,144.92,144.84,0.17]
[1718378736849,2.5535,144.9,144.84,0.17]
[1718378737179,2.5533,144.91,144.85,2.5543]
[1718378737338,2.5532,144.92,144.86,2.5541]
[1718378737543,15.3188,144.92,144.85,25.5426]
[1718378737850,2.5533,144.91,144.85,2.5542]
[1718378738062,7.6599,144.91,144.85,2.5542]
[1718378738448,2.5539,144.88,144.81,25.55]
[1718378738645,5.1074,144.89,144.82,15.3291]
[1718378738851,22.9833,144.89,144.82,2.5547]
[1718378739164,10.2179,144.85,144.78,5.111]
[1718378739367,10.2179,144.85,144.76,7.844]
[1718378739368,0.17,144.85,144.76,7.844]
[1718378739683,7.6627,144.86,144.8,2.5551]
[1718378739860,15.036,144.89,144.85,2.5543]
[1718378740157,7.6615,144.88,144.82,2.5548]
[1718378740361,2.5536,144.89,144.83,7.6638]
[1718378740567,7.6609,144.89,144.83,2.5545]
[1718378740775,2.5536,144.89,144.83,7.6638]
[1718378740953,5.1076,144.88,144.82,5.1096]
[1718378741143,22.9864,144.87,144.81,0.17]
[1718378741344,2.5537,144.89,144.81,0.17]
[1718378741555,15.3221,144.89,144.82,23.1633]
[1718378741746,110.2142,144.9,144.83,23.3319]
[1718378741747,15.3208,144.9,144.83,23.3319]
[1718378742049,253.8,144.91,144.85,15.3258]
[1718378742250,253.8,144.91,144.83,7.6639]
[1718378742251,2.5537,144.89,144.83,7.6639]
[1718378742467,25.5359,144.9,144.83,15.328]
[1718378742672,5.1061,144.93,144.86,5.1083]
[1718378742973,15.318,144.93,144.86,22.9873]
[1718378743148,2.5528,144.94,144.88,5.1075]
[1718378743368,2.5528,144.94,144.87,8.1716]
[1718378743369,2.5529,144.93,144.87,8.1716]
[1718378743572,22.9775,144.93,144.86,7.6623]
[1718378743756,15.3187,144.92,144.86,2.5541]
[1718378743942,100.0,144.94,144.85,6.5135]
[1718378744146,7.6606,144.9,144.85,6.5135]
[1718378744467,2.5534,144.91,144.85,2.5542]
[1718378744775,22.9784,144.92,144.85,25.5432]
[1718378744944,25.5316,144.92,144.86,2.5541]
[1718378745267,5.1066,144.91,144.84,5.1088]
[1718378745563,2.5531,144.92,144.86,2.5541]
[1718378745764,15.3188,144.92,144.86,2.5541]
[1718378745964,7.6594,144.92,144.86,2.5541]
[1718378746168,0.817954,144.95,144.89,20.81]
[1718378746368,0.817954,144.95,144.9,0.17]
[1718378746543,0.817954,144.95,144.94,2.5527]
[1718378747058,0.817954,144.95,144.93,22.9763]
[1718378747370,0.817954,144.95,144.93,7.6586]
[1718378747747,0.817954,144.95,144.94,7.6582]
[1718378747968,0.817954,144.95,144.94,7.8282]
[1718378748355,0.817954,144.95,144.94,25.8676]
[1718378748559,0.817954,144.95,144.94,26.0376]
[1718378749264,0.817954,144.95,144.94,26.2076]
[1718378750264,0.817954,144.95,144.94,47.0176]
[1718378750572,0.817954,144.95,144.94,67.0176]
[1718378750780,0.817954,144.95,144.94,112.0176]
[1718378751202,6.5671,145.07,145.0,12.7584]
[1718378751511,2.5508,145.05,144.99,7.9953]
[1718378751717,17.8577,145.04,144.97,2.5521]
[1718378751901,2.5511,145.04,144.98,2.5519]
[1718378752200,7.6548,145.01,144.95,2.5525]
[1718378752512,7.6537,145.03,144.97,2.5521]
[1718378752791,15.3061,145.04,144.97,10.2083]
[1718378752966,15.3061,145.04,144.98,2.552]
[1718378752967,2.5511,145.04,144.98,2.552]
[1718378753166,5.1014,145.06,144.97,0.17]
[1718378753390,22.9562,145.06,144.99,5.1035]
[1718378753587,2.5505,145.07,145.01,2.5514]
[1718378753803,15.303,145.07,145.0,70.8562]
[1718378753988,2.5509,145.05,144.99,7.6555]
[1718378754190,2.5509,145.05,144.99,15.3111]
[1718378754399,2.5507,145.06,145.0,7.6549]
[1718378754705,2.5506,145.07,145.01,2.7215]
[1718378755207,0.817954,145.1,145.02,6.5549]
[1718378755388,0.817954,145.1,145.06,2.5506]
[1718378755594,0.817954,145.1,145.05,17.8555]
[1718378755595,0.817954,145.1,145.05,7.6523]
[1718378756089,0.817954,145.1,145.05,2.5507]
[1718378756291,0.817954,145.1,145.04,18.0268]
[1718378756597,0.817954,145.1,145.05,2.7207]
[1718378756805,0.817954,145.1,145.09,25.5012]
[1718378757195,0.817954,145.1,145.09,2.5501]
[1718378757585,0.817954,145.1,145.09,2.8901]
[1718378757810,0.817954,145.1,145.07,2.5504]
[1718378758109,3.367954,145.1,145.04,2.8909]
[1718378758417,0.817954,145.1,145.07,22.9537]
[1718378758615,0.817954,145.1,145.06,0.17]
[1718378758616,0.817954,145.1,145.09,20.401]
[1718378758914,0.817954,145.1,145.09,26.1812]
[1718378759603,0.817954,145.1,145.01,15.4632]
[1718378759807,22.9517,145.09,145.02,31.7279]
[1718378760022,0.817954,145.1,145.0,22.9646]
[1718378760023,22.9533,145.08,145.0,22.9646]
[1718378760188,5.1006,145.08,145.01,10.2057]
[1718378760387,5.1006,145.08,144.98,6.434]
[1718378760388,12.7533,145.06,144.99,22.9659]
[1718378760694,12.7533,145.06,145.0,7.655]
[1718378760695,2.5507,145.06,145.0,7.655]
[1718378761016,7.6518,145.07,145.01,2.5515]
[1718378761215,2.5506,145.07,145.01,15.309]
[1718378761419,5.1026,145.03,144.96,5.1046]
[1718378761626,7.6538,145.03,144.96,22.9714]
[1718378761788,0.17,145.08,144.94,6.3096]
[1718378761789,259.84170265,145.13,144.94,6.3096]
[1718378761990,17.8574,145.04,144.94,6.3096]
[1718378762208,110.2036,145.05,144.97,17.8653]
[1718378762425,7.6525,145.05,144.99,2.5518]
[1718378762719,7.6526,145.05,144.99,2.5517]
[1718378762882,100.0,145.09,144.99,5.1034]
[1718378763088,0.817954,145.1,144.94,27.1196]
[1718378763309,3.367954,145.1,145.04,2.5509]
[1718378763693,100.817954,145.1,144.95,0.17]
[1718378763893,5.918054,145.1,144.95,20.68]
[1718378764123,3.367954,145.1,145.03,22.96]
[1718378764300,0.817954,145.1,145.04,7.6528]
[1718378764508,0.817954,145.1,145.02,0.17]
[1718378764509,0.817954,145.1,145.08,2.5502]
[1718378765028,0.817954,145.1,145.07,0.17]
[1718378765231,0.817954,145.1,145.06,7.6516]
[1718378765395,0.817954,145.1,145.05,0.17]
[1718378765592,3.367954,145.1,145.05,0.17]
[1718378765787,0.817954,145.1,145.05,2.5508]
[1718378765994,3.367854,145.1,145.04,7.6529]
[1718378766193,0.817954,145.1,145.04,15.3059]
[1718378766420,0.817954,145.1,145.06,7.6517]
[1718378766625,0.817954,145.1,145.07,0.17]
[1718378766810,0.817954,145.1,145.07,7.6512]
[1718378767131,0.817954,145.1,145.07,7.6513]
[1718378767307,0.817954,145.1,145.06,2.5505]
[1718378767499,0.817954,145.1,145.07,2.5504]
[1718378767698,0.817954,145.1,145.07,10.2018]
[1718378767893,0.817954,145.1,145.09,2.5501]
[1718378768208,0.817954,145.1,145.09,25.8412]
[1718378768449,0.817954,145.1,145.09,26.0112]
[1718378768651,0.817954,145.1,145.03,6.0366]
[1718378768652,0.817954,145.1,145.04,0.17]
[1718378768840,23.768154,145.1,145.03,13.6898]
[1718378769040,3.367854,145.1,145.04,7.6528]
[1718378769367,3.367854,145.1,145.03,2.5511]
[1718378769368,5.1003,145.09,145.03,2.5511]
[1718378769671,23.768054,145.1,145.04,30.0]
[1718378769968,10.2018,145.08,145.04,30.0]
[1718378770141,7.6517,145.07,145.04,30.0]
[1718378770339,7.6515,145.07,145.04,30.0]
[1718378770562,17.8558,145.05,144.98,2.552]
[1718378770865,2.551,145.04,144.98,12.76]
[1718378771038,22.9579,145.05,144.99,2.5518]
[1718378771242,25.5089,145.05,144.99,2.5518]
[1718378771444,7.6531,145.04,144.97,5.1043]
[1718378771638,7.6536,145.03,144.96,5.1046]
[1718378771852,10.204,145.05,144.97,5.1043]
[1718378772086,25.5096,145.05,144.99,2.5518]
[1718378772285,25.5097,145.05,144.99,2.5518]
[1718378772503,7.6522,145.06,145.0,7.655]
[1718378772806,5.1012,145.07,145.01,7.6544]
[1718378772988,5.1011,145.07,145.01,2.5514]
[1718378773291,11.018254,145.1,144.95,26.9136]
[1718378773589,100.817954,145.1,144.96,50.0]
[1718378773889,2.5508,145.05,145.0,2.5517]
[1718378774113,7.6515,145.07,145.01,7.6542]
[1718378774285,25.5037,145.08,145.02,2.5513]
[1718378774604,25.5037,145.08,145.01,22.9633]
[1718378774605,2.5506,145.06,145.0,25.5161]
[1718378774771,7.6519,145.06,145.0,7.6547]
[1718378774965,7.6519,145.06,145.0,2.5516]
[1718378774966,25.5068,145.06,145.0,2.5516]
[1718378775173,15.3063,145.04,144.98,2.5519]
[1718378775501,10.2033,145.05,144.99,30.0]
[1718378775502,2.5514,145.02,144.99,30.0]
[1718378775685,5.1027,145.02,144.95,6.1036]
[1718378775874,17.8615,145.01,144.94,15.3164]
[1718378776066,2.5519,144.99,144.93,25.5281]
[1718378776265,2.5519,144.99,144.94,2.5527]
[1718378776468,7.6554,145.0,144.94,7.6582]
[1718378776892,7.6554,145.0,144.94,15.3165]
[1718378777117,6.3276,145.06,144.92,20.81]
[1718378777266,7.6538,145.03,144.97,7.6565]
[1718378777468,6.3276,145.06,144.93,40.81]
[1718378777667,7.6522,145.06,144.99,12.7595]
[1718378777891,7.6522,145.06,145.0,7.655]
[1718378778189,2.5508,145.06,145.0,7.655]
[1718378778371,7.6521,145.06,145.0,15.31]
[1718378778566,15.3041,145.06,145.0,7.655]
[1718378778762,107.121754,145.1,144.98,0.17]
[1718378778990,2.5508,145.05,144.99,25.6877]
[1718378779192,22.9566,145.06,145.0,2.5517]
[1718378779402,2.5508,145.05,145.0,2.5517]
[1718378779610,2.5508,145.05,144.98,23.1378]
[1718378779611,2.551,145.04,144.98,23.1378]
[1718378779899,10.2034,145.05,144.98,23.1378]
[1718378779900,2.5509,145.05,144.99,22.9663]
[1718378780097,22.9564,145.06,145.0,2.5516]
[1718378780301,25.5072,145.06,145.0,2.5516]
[1718378780602,2.5512,145.03,144.98,0.17]
[1718378780817,2.5519,144.99,144.93,22.9758]
[1718378781104,15.3114,144.99,144.93,7.6585]
[1718378781277,2.5519,144.99,144.93,22.9763]
[1718378781480,7.6557,144.99,144.93,25.5291]
[1718378781798,7.6564,144.98,144.92,15.3184]
[1718378782004,7.6564,144.98,144.92,10.2123]
[1718378782291,7.6564,144.98,144.92,15.3184]
[1718378782488,2.552,144.99,144.93,7.6587]
[1718378782699,2.5518,145.0,144.94,5.1055]
[1718378782871,25.5173,145.0,144.94,2.5527]
[1718378783071,2.5519,144.99,144.93,25.5284]
[1718378783270,15.3114,144.99,144.93,7.6583]
[1718378783471,2.5519,144.99,144.94,2.5527]
[1718378783682,25.5177,145.0,144.94,2.5527]
[1718378784197,25.5177,145.0,144.94,7.6582]
[1718378785199,2.5521,144.98,144.91,6.2928]
[1718378785398,100.0,144.99,144.87,6.6497]
[1718378785605,7.6579,144.95,144.89,15.3216]
[1718378785899,2.5529,144.93,144.87,11.7574]
[1718378786101,2.5529,144.93,144.88,2.5538]
[1718378786102,2.5531,144.93,144.88,2.5538]
[1718378786309,25.5287,144.94,144.88,2.5537]
[1718378786482,2.5529,144.93,144.88,2.5537]
[1718378786804,22.9758,144.94,144.88,15.3227]
[1718378786805,7.6584,144.94,144.88,15.3227]
[1718378787007,17.8675,144.96,144.87,6.6497]
[1718378787241,0.17,145.0,144.88,0.17]
[1718378787403,2.552,144.98,144.92,17.8716]
[1718378787606,7.6562,144.98,144.92,25.5307]
[1718378787804,7.6562,144.98,144.92,7.6591]
[1718378788332,2.5521,144.98,144.93,2.5529]
[1718378788512,7.6559,144.99,144.93,7.6586]
[1718378788701,2.5519,144.99,144.93,7.6585]
[1718378788908,15.3114,144.99,144.93,7.6585]
[1718378789107,2.5521,144.98,144.93,2.5528]
[1718378789714,25.5208,144.98,144.92,2.5529]
[1718378790029,100.0,145.0,144.88,20.34]
[1718378790213,2.552,144.98,144.93,2.5529]
[1718378790409,25.5174,145.0,144.94,7.6582]
[1718378790926,2.5519,144.99,144.94,2.5527]
[1718378791112,2.5519,144.99,144.93,22.9758]
[1718378791113,7.6578,144.95,144.89,7.8305]
[1718378791337,2.5529,144.93,144.88,2.5537]
[1718378791507,2.5529,144.93,144.87,32.1885]
[1718378791830,117.8649,144.98,144.91,10.2131]
[1718378792030,117.8649,144.98,144.91,2.5531]
[1718378792031,15.3136,144.97,144.91,2.5531]
[1718378792246,2.5521,144.98,144.93,2.5528]
[1718378792409,2.5521,144.98,144.93,2.5529]
[1718378792829,100.0,145.0,144.93,2.5529]
[1718378792830,17.8628,145.0,144.93,12.7644]
[1718378793025,7.6558,144.99,144.93,7.6585]
[1718378793333,7.6558,144.99,144.93,15.3173]
[1718378793509,25.5182,145.0,144.94,2.5527]
[1718378793913,25.5182,145.0,144.94,7.6582]
[1718378794135,7.6554,145.0,144.94,7.6582]
[1718378794334,2.5519,144.99,144.94,2.5527]
[1718378794551,7.6557,144.99,144.93,7.6585]
[1718378794834,2.5526,144.95,144.89,25.5357]
[1718378795013,2.5526,144.95,144.9,0.17]
[1718378795215,2.5525,144.96,144.9,7.8303]
[1718378795450,7.6574,144.96,144.9,15.4907]
[1718378795733,7.6564,144.98,144.92,7.6592]
[1718378795940,7.6559,144.99,144.93,2.5529]
[1718378796145,46.9347,145.02,144.96,2.5524]
[1718378796318,15.3105,145.0,144.94,2.5527]
[1718378796512,2.5518,145.0,144.94,22.9745]
[1718378796711,7.6552,145.0,144.94,7.6581]
[1718378797236,21.4201,145.02,144.97,7.6564]
[1718378797438,22.6946,145.02,144.96,7.827]
[1718378797732,15.0405,145.02,144.97,2.5521]
[1718378797935,17.5918,145.02,144.96,23.1407]
[1718378798244,17.5919,145.02,144.97,2.5522]
[1718378798633,5.1032,145.01,144.95,2.5525]
[1718378798942,25.5157,145.01,144.95,7.6576]
[1718378799110,15.0405,145.02,144.94,17.8688]
[1718378799111,17.5919,145.02,144.96,22.9714]
[1718378799306,17.5919,145.02,144.97,2.5522]
[1718378799512,30.3487,145.02,144.96,7.6569]
[1718378799926,22.6946,145.02,144.96,7.6569]
[1718378800234,40.5541,145.02,144.96,2.5522]
[1718378800439,25.5137,145.02,144.96,2.5522]
[1718378800645,15.3084,145.02,144.96,7.6569]
[1718378800820,7.6543,145.02,144.96,7.6569]
[1718378801437,2.5515,145.01,144.96,2.5522]
[1718378801620,7.6552,145.0,144.94,32.3095]
[1718378801814,5.1034,145.0,144.94,9.3352]
[1718378802034,2.5519,144.99,144.93,12.7644]
[1718378802333,22.9648,145.01,144.95,2.5525]
[1718378802537,2.5517,145.0,144.95,2.5525]
[1718378802733,25.5172,145.0,144.94,2.5526]
[1718378803556,7.6551,145.0,144.94,7.658]
[1718378804050,7.6558,144.99,144.92,0.17]
[1718378804355,2.5522,144.98,144.92,25.5308]
[1718378804532,2.5522,144.98,144.92,22.9778]
[1718378804849,2.5522,144.97,144.91,22.9789]
[1718378805014,7.6559,144.99,144.93,5.1058]
[1718378805356,22.9656,145.0,144.94,2.5526]
[1718378805524,25.5174,145.0,144.94,2.5526]
[1718378805837,15.3104,145.0,144.94,7.6581]
[1718378806036,2.5519,144.99,144.94,2.5527]
[1718378806414,17.8622,145.0,144.94,7.6582]
[1718378806843,2.5519,144.99,144.94,2.5527]
[1718378807042,25.5175,145.0,144.94,2.5527]
[1718378807217,2.5519,144.99,144.94,2.5527]
[1718378807415,15.3105,145.0,144.94,7.6581]
[1718378807845,2.5519,144.99,144.94,2.5527]
[1718378808342,22.9657,145.0,144.93,22.9756]
[1718378808343,22.9657,145.0,144.93,25.5283]
[1718378808557,7.6557,144.99,144.94,0.17]
[1718378808717,2.552,144.98,144.94,0.17]
[1718378809045,2.5521,144.98,144.94,0.17]
[1718378809217,2.5521,144.98,144.93,2.7229]
[1718378809417,2.5522,144.97,144.93,0.17]
[1718378810244,2.5522,144.98,144.93,2.7229]
[1718378810448,25.5199,144.99,144.93,2.7229]
[1718378810620,25.5199,144.99,144.93,7.8287]
[1718378810950,2.5519,144.99,144.94,2.5527]
[1718378811114,22.9663,145.0,144.94,2.5527]
[1718378811318,2.5519,144.99,144.94,2.5527]
[1718378811546,2.5519,144.99,144.93,25.6988]
[1718378811751,2.5519,144.99,144.94,2.5527]
[1718378812648,2.5519,144.99,144.9,31.7441]
[1718378812649,7.6574,144.96,144.9,31.7441]
[1718378813219,25.5231,144.97,144.91,7.6597]
[1718378813419,2.5524,144.96,144.91,2.5532]
[1718378813926,2.5523,144.97,144.92,2.5531]
[1718378814143,0.17,144.99,144.9,6.2098]
[1718378814344,2.5523,144.97,144.92,2.5531]
[1718378814540,2.5523,144.97,144.91,25.5323]
[1718378814740,100.0,145.02,144.94,2.5527]
[1718378815021,7.6557,144.99,144.93,7.6585]
[1718378815226,7.6557,144.99,144.93,15.3173]
[1718378815436,2.5519,144.99,144.94,2.5527]
[1718378815727,7.6557,144.99,144.93,25.529]
[1718378815923,5.1035,145.0,144.94,2.5527]
[1718378816147,7.6557,144.99,144.93,25.5282]
[1718378816329,2.5519,144.99,144.94,2.5527]
[1718378816530,7.6557,144.99,144.93,25.5283]
[1718378817049,7.6557,144.99,144.93,15.3173]
[1718378817234,2.5521,144.98,144.93,2.5528]
[1718378817432,2.5521,144.98,144.92,22.977]
[1718378817643,25.5191,144.99,144.93,2.5528]
[1718378818464,2.552,144.98,144.93,2.5528]
[1718378818748,22.9704,144.97,144.91,2.8932]
[1718378818930,2.5524,144.96,144.91,0.34]
[1718378819339,25.5214,144.98,144.92,7.6592]
[1718378819551,2.5522,144.97,144.91,25.8721]
[1718378820125,2.5522,144.98,144.93,2.5529]
[1718378820322,16.304,144.99,144.94,15.3162]
[1718378820540,18.8559,144.99,144.94,2.5526]
[1718378820826,16.304,144.99,144.94,2.5526]
[1718378821226,16.304,144.99,144.95,2.5525]
[1718378821649,2.5515,145.01,144.96,2.5523]
[1718378821836,2.5514,145.02,144.96,25.5232]
[1718378822135,7.6548,145.01,144.95,15.3153]
[1718378822336,2.5516,145.01,144.95,25.5256]
[1718378822538,17.8621,145.0,144.94,2.7227]
[1718378822751,17.8621,145.0,144.94,7.8282]
[1718378823061,2.5516,145.01,144.96,2.5524]
[1718378823235,2.5516,145.01,144.95,25.5252]
[1718378823651,25.5144,145.02,144.96,2.5524]
[1718378823831,25.5143,145.02,144.96,2.5523]
[1718378824031,2.5515,145.01,144.95,22.9726]
[1718378824232,2.5517,145.0,144.94,23.1442]
[1718378824447,115.6712,145.09,144.96,21.9241]
[1718378824761,15.6712,145.09,145.01,5.103]
[1718378824935,2.5505,145.07,145.02,2.5513]
[1718378825141,14.1712,145.09,145.04,2.5508]
[1718378825336,37.1224,145.09,145.03,2.5511]
[1718378825560,23.768154,145.1,145.04,2.5509]
[1718378825760,23.768154,145.1,145.03,2.551]
[1718378825761,22.9513,145.09,145.03,2.551]
[1718378825966,2.5501,145.09,145.04,2.551]
[1718378826138,7.6503,145.09,145.03,25.5115]
[1718378826343,22.9512,145.09,145.03,2.551]
[1718378826647,22.9512,145.09,145.02,18.0292]
[1718378826648,7.6509,145.08,145.02,25.6829]
[1718378826849,2.5503,145.08,145.03,0.17]
[1718378827241,2.5503,145.08,145.03,2.7211]
[1718378828156,22.9515,145.09,145.03,2.7211]
[1718378828362,26.318154,145.1,145.04,2.5509]
[1718378828661,5.917854,145.1,145.04,2.5509]
[1718378828871,22.9514,145.09,145.03,2.721]
[1718378829162,0.817954,145.1,145.08,2.5502]
[1718378829550,0.817954,145.1,145.07,2.5503]
[1718378830061,0.817954,145.1,145.07,7.6512]
[1718378830255,0.817954,145.1,145.07,2.5503]
[1718378830563,0.817954,145.1,145.06,2.5505]
[1718378830742,0.817954,145.1,145.06,2.5506]
[1718378831177,0.817954,145.1,145.07,2.5504]
[1718378831351,0.817954,145.1,145.08,2.5502]
[1718378831543,0.817954,145.1,145.07,22.9538]
[1718378831544,0.817954,145.1,145.09,25.5012]
[1718378832165,0.817954,145.1,145.09,2.5501]
[1718378832478,0.817954,145.1,145.08,2.5501]
[1718378832772,0.817954,145.1,145.07,2.7203]
[1718378832944,0.817954,145.1,145.07,2.7204]
[1718378833139,0.817954,145.1,145.08,7.8208]
[1718378833642,0.817954,145.1,145.06,0.34]
[1718378833643,0.817954,145.1,145.06,0.17]
[1718378833842,0.817954,145.1,145.07,2.5504]
[1718378834259,0.817954,145.1,145.06,25.5059]
[1718378834569,0.817954,145.1,145.06,25.506]
[1718378834763,0.817954,145.1,145.07,2.5504]
[1718378834967,0.817954,145.1,145.09,2.5501]
[1718378835155,0.817954,145.1,145.08,7.6506]
[1718378835362,0.817954,145.1,145.08,2.5502]
[1718378835950,0.817954,145.1,145.08,7.6507]
[1718378836271,0.817954,145.1,145.08,15.3013]
[1718378836479,0.817954,145.1,145.07,2.8904]
[1718378836654,0.817954,145.1,145.06,25.5056]
[1718378836861,0.817954,145.1,145.05,22.9567]
[1718378837181,0.817954,145.1,145.06,7.6518]
[1718378837476,0.817954,145.1,145.06,25.5063]
[1718378837691,0.817954,145.1,145.07,15.3027]
[1718378837854,0.817954,145.1,145.06,7.6515]
[1718378838176,0.817954,145.1,145.06,25.5059]
[1718378838380,0.817954,145.1,145.06,22.9554]
[1718378838561,0.817954,145.1,145.07,0.17]
[1718378838755,0.817954,145.1,145.08,2.5503]
[1718378839351,0.817954,145.1,145.07,25.6744]
[1718378839554,0.817954,145.1,145.07,2.7203]
[1718378839748,0.817954,145.1,145.07,0.17]
[1718378839953,0.817954,145.1,145.07,2.8904]
[1718378840546,0.817954,145.1,145.07,0.17]
[1718378841081,0.817954,145.1,145.07,0.34]
[1718378841258,0.817954,145.1,145.09,25.5012]
[1718378841470,0.817954,145.1,145.09,26.0112]
[1718378841860,0.817954,145.1,145.09,26.1812]
[1718378842074,0.817954,145.1,145.09,71.1812]
[1718378842560,0.817954,145.1,145.09,70.8412]
[1718378842889,0.817954,145.1,145.09,25.8412]
[1718378843250,0.817954,145.1,145.09,26.0112]
[1718378843502,0.817954,145.1,145.09,71.1812]
[1718378844578,0.817954,145.1,145.05,7.6522]
[1718378844781,0.817954,145.1,145.06,17.8537]
[1718378845073,0.817954,145.1,145.06,2.5505]
[1718378845264,0.817954,145.1,145.06,7.6518]
[1718378845466,0.817954,145.1,145.06,15.3038]
[1718378846048,0.817954,145.1,145.06,12.7533]
[1718378846271,0.817954,145.1,145.06,25.5063]
[1718378846674,0.817954,145.1,145.07,2.5504]
[1718378847689,0.817954,145.1,145.06,22.9549]
[1718378847859,0.817954,145.1,145.07,0.17]
[1718378848262,0.817954,145.1,145.05,0.34]
[1718378848477,0.817954,145.1,145.05,2.8908]
[1718378848691,2.5502,145.09,145.02,44.5218]
[1718378848865,8.468154,145.1,145.03,22.9603]
[1718378849056,8.468154,145.1,145.03,25.5113]
[1718378849257,16.118054,145.1,145.03,22.9603]
[1718378849556,3.367954,145.1,145.04,2.5509]
[1718378849882,0.817954,145.1,145.04,7.6529]
[1718378850054,3.367854,145.1,145.04,7.6529]
[1718378850455,0.817954,145.1,145.05,45.17]
[1718378850684,0.817954,145.1,145.07,22.954]
[1718378850997,0.817954,145.1,145.07,7.6512]
[1718378851682,0.817954,145.1,145.06,0.17]
[1718378851857,0.817954,145.1,145.07,2.5504]
[1718378852060,0.817954,145.1,145.07,25.5039]
[1718378852252,0.817954,145.1,145.07,7.6511]
[1718378852770,0.817954,145.1,145.05,45.17]
[1718378852965,0.817954,145.1,145.05,7.6522]
[1718378853278,0.817954,145.1,145.07,15.3027]
[1718378853581,0.817954,145.1,145.07,7.6513]